bitfinex-derivatives/quotes_BTCF0:USTF0_20250212
["timestamp","ask_amount","ask_price","bid_price","bid_amount"]
[1739368602204,0.005,95250.0,95245.0,0.001]
[1739368603108,0.3658,95250.0,95231.0,0.3608]
[1739368603410,0.3658,95250.0,95226.0,0.18832688]
[1739368603411,0.3608,95238.0,95226.0,0.18832688]
[1739368603812,0.3758,95250.0,95226.0,0.18832688]
[1739368604004,0.3608,95240.0,95226.0,0.18832688]
[1739368604204,0.55162628,95240.0,95228.0,0.00015748]
[1739368604405,0.3608,95229.0,95228.0,0.00015748]
[1739368605911,0.3648,95240.0,95228.0,0.00015748]
[1739368606104,0.3608,95231.0,95228.0,0.001]
[1739368606810,0.006,95229.0,95228.0,0.001]
[1739368607010,0.014,95229.0,95228.0,0.002]
[1739368607214,0.008,95229.0,95228.0,0.001]
[1739368607410,0.008,95229.0,95228.0,0.002]
[1739368607711,0.3608,95229.0,95228.0,0.002]
[1739368608011,0.3608,95229.0,95219.0,0.00015748]
[1739368608012,0.6668,95229.0,95219.0,0.00015748]
[1739368608210,0.3608,95225.0,95219.0,0.00015748]
[1739368608519,0.006,95229.0,95219.0,0.00015748]
[1739368609210,0.006,95229.0,95211.0,0.3608]
[1739368609607,0.3608,95221.0,95211.0,0.3608]
[1739368609809,0.3608,95221.0,95219.0,0.001]
[1739368610208,0.3608,95221.0,95211.0,0.3608]
[1739368610413,0.3608,95221.0,95211.0,0.3618]
[1739368610613,0.3608,95221.0,95211.0,0.3628]
[1739368610912,0.001,95221.0,95219.0,0.001]
[1739368611620,0.001,95221.0,95219.0,0.3618]
[1739368611818,0.012,95229.0,95219.0,0.3618]
[1739368612021,0.012,95229.0,95219.0,0.55262628]
[1739368612216,0.012,95221.0,95219.0,0.4999198]
[1739368612416,0.012,95221.0,95219.0,0.30909352]
[1739368612626,0.012,95221.0,95212.0,0.00072]
[1739368612627,0.019,95221.0,95212.0,0.00072]
[1739368612922,0.007,95221.0,95211.0,0.3618]
[1739368613118,0.3608,95225.0,95219.0,0.001]
[1739368613306,0.3608,95225.0,95219.0,0.002]
[1739368613713,0.3608,95225.0,95212.0,0.001]
[1739368613908,0.02,95221.0,95212.0,0.002]
[1739368614112,0.3608,95217.0,95212.0,0.002]
[1739368614311,0.3608,95217.0,95212.0,0.001]
[1739368615114,0.3608,95217.0,95210.0,0.00015748]
[1739368615315,0.3608,95217.0,95202.0,0.25455394]
[1739368616123,0.3608,95217.0,95212.0,0.001]
[1739368616317,0.3718,95217.0,95212.0,0.001]
[1739368616616,0.3718,95217.0,95210.0,0.001]
[1739368616817,0.3788,95217.0,95210.0,0.001]
[1739368617013,0.3728,95217.0,95202.0,0.04561804]
[1739368617223,0.3608,95208.0,95200.0,0.00015748]
[1739368617818,0.3608,95205.0,95200.0,0.00015748]
[1739368618117,0.2524,95204.0,95200.0,0.00015748]
[1739368618319,0.2524,95204.0,95176.0,0.3608]
[1739368618514,0.3608,95197.0,95184.0,0.29613169]
[1739368619823,0.3608,95197.0,95185.0,0.3608]
[1739368620008,0.3658,95197.0,95185.0,0.3608]
[1739368620212,0.3658,95197.0,95184.0,0.66393169]
[1739368620609,0.00015757,95200.0,95192.0,0.3608]
[1739368620810,0.3608,95216.0,95192.0,0.3608]
[1739368621121,0.3608,95216.0,95193.0,0.4298]
[1739368621323,0.3608,95207.0,95193.0,0.4298]
[1739368622325,0.3608,95199.0,95186.0,0.14076]
[1739368622523,0.3608,95191.0,95186.0,0.14076]
[1739368622718,0.3608,95191.0,95184.0,0.29613169]
[1739368623323,0.3608,95191.0,95184.0,0.04431797]
[1739368623618,0.3628,95191.0,95186.0,0.006]
[1739368624423,0.3628,95191.0,95180.0,0.19082628]
[1739368624631,0.002,95191.0,95180.0,0.19082628]
[1739368624821,0.002,95191.0,95179.0,0.3608]
[1739368625024,0.002,95191.0,95180.0,0.19082628]
[1739368625224,0.003,95191.0,95184.0,0.008]
[1739368625528,0.2489,95224.0,95198.0,0.2100989]
[1739368625724,0.2489,95224.0,95215.0,0.3608]
[1739368626623,0.2489,95224.0,95207.0,0.3608]
[1739368626823,0.3608,95221.0,95210.0,0.00015757]
[1739368627124,0.3608,95221.0,95215.0,0.001]
[1739368627423,0.3608,95221.0,95190.0,0.5709155]
[1739368627733,0.3608,95213.0,95190.0,0.80577694]
[1739368627929,0.3608,95213.0,95190.0,0.61495066]
[1739368628117,0.3608,95213.0,95210.0,0.001]
[1739368628522,0.2509,95224.0,95210.0,0.001]
[1739368628722,0.2489,95224.0,95210.0,0.001]
[1739368628922,0.012,95221.0,95210.0,0.002]
[1739368629623,0.012,95224.0,95214.0,0.3608]
[1739368629827,0.012,95224.0,95223.0,0.3608]
[1739368630425,0.18528146,95250.0,95223.0,0.30809352]
[1739368630629,0.18528146,95250.0,95241.0,0.3608]
[1739368631830,0.3608,95242.0,95236.0,0.00015749]
[1739368632228,0.5708038,95242.0,95236.0,0.00015749]
[1739368632434,0.3608,95238.0,95236.0,0.00015749]
[1739368632634,0.2100297,95230.0,95223.0,0.001]
[1739368632823,0.3608,95226.0,95223.0,0.001]
[1739368633023,0.3608,95226.0,95195.0,0.3984]
[1739368633024,0.2100629,95215.0,95195.0,0.2432]
[1739368633321,0.3608,95200.0,95187.0,0.04422886]
[1739368633526,0.3608,95195.0,95182.0,0.30966912]
[1739368633734,0.3608,95208.0,95194.0,0.37518537]
[1739368633735,0.19082628,95200.0,95194.0,0.37518537]
[1739368634031,0.00015758,95201.0,95194.0,0.37518537]
[1739368634230,0.3608,95209.0,95194.0,0.73598537]
[1739368634431,0.3608,95209.0,95202.0,0.3608]
[1739368636030,0.3608,95209.0,95194.0,0.37818537]
[1739368636237,0.3678,95201.0,95194.0,0.37818537]
[1739368636544,0.3678,95201.0,95194.0,0.32447889]
[1739368636731,0.3608,95198.0,95184.0,0.00015758]
[1739368636935,0.5709283,95185.0,95184.0,0.00015758]
[1739368637131,0.3608,95185.0,95184.0,0.00015758]
[1739368637327,0.00015758,95194.0,95184.0,0.36095758]
[1739368638134,0.21026648,95194.0,95184.0,0.36495758]
[1739368638335,0.3608,95186.0,95184.0,0.00415758]
[1739368638633,0.3608,95189.0,95184.0,0.00415758]
[1739368638842,0.3608,95186.0,95184.0,0.00415758]
[1739368639028,0.005,95185.0,95184.0,0.00415758]
[1739368639427,0.4222,95185.0,95184.0,0.00415758]
[1739368639633,0.4172,95185.0,95176.0,0.20266074]
[1739368639828,0.005,95186.0,95184.0,0.007]
[1739368640142,0.19082628,95220.0,95189.0,0.2101174]
[1739368640327,0.3608,95210.0,95195.0,0.3608]
[1739368640532,0.55162628,95210.0,95195.0,0.3608]
[1739368640741,0.55162628,95210.0,95185.0,0.2629]
[1739368640941,0.3608,95199.0,95185.0,0.2629]
[1739368641139,0.3608,95199.0,95186.0,0.00015758]
[1739368641340,0.4057,95198.0,95186.0,0.00015758]
[1739368642140,0.3608,95199.0,95189.0,0.2101188]
[1739368642338,0.3608,95199.0,95190.0,0.2101155]
[1739368642535,0.3608,95199.0,95192.0,0.30809352]
[1739368642935,0.006,95198.0,95193.0,0.2101107]
[1739368643131,0.006,95198.0,95194.0,0.4286]
[1739368643543,0.005,95199.0,95194.0,0.4286]
[1739368645150,0.00015758,95205.0,95202.0,0.2100899]
[1739368645346,0.001576,95219.0,95204.0,0.3608]
[1739368645544,0.001576,95219.0,95218.0,0.30809352]
[1739368645734,0.18528146,95225.0,95218.0,0.30809352]
[1739368645936,0.17284177,95225.0,95220.0,0.2100508]
[1739368646237,0.00157548,95245.0,95221.0,0.4218]
[1739368646542,0.55162628,95270.0,95242.0,0.3608]
[1739368646841,0.00015758,95243.0,95242.0,0.3608]
[1739368647447,0.2099259,95277.0,95242.0,0.5708026]
[1739368647743,0.3608,95270.0,95242.0,0.5708026]
[1739368647944,0.015,95243.0,95242.0,0.5718026]
[1739368648542,0.3608,95278.0,95242.0,0.3618]
[1739368648745,0.00015748,95252.0,95251.0,0.3608]
[1739368648947,0.007,95270.0,95251.0,0.3608]
[1739368649134,0.00015748,95261.0,95251.0,0.3608]
[1739368649335,0.00015748,95261.0,95252.0,0.415]
[1739368651046,0.01115748,95261.0,95252.0,0.416]
[1739368651549,0.37195748,95261.0,95252.0,0.04403452]
[1739368651740,0.3608,95253.0,95251.0,0.001]
[1739368651938,0.3608,95253.0,95213.0,0.3608]
[1739368652142,0.3608,95253.0,95203.0,0.04498001]
[1739368652143,0.3608,95221.0,95203.0,0.04498001]
[1739368652337,0.3608,95207.0,95196.0,0.2572]
[1739368652544,0.3608,95207.0,95195.0,0.04316686]
[1739368652742,0.3608,95207.0,95206.0,1e-08]
[1739368652943,0.6608,95207.0,95206.0,1e-08]
[1739368653240,0.2101061,95196.0,95174.0,0.04403153]
[1739368653448,0.3608,95185.0,95170.0,0.19082628]
[1739368653646,0.3608,95195.0,95180.0,0.2101382]
[1739368653846,0.3608,95195.0,95179.0,0.3608]
[1739368654451,0.3608,95195.0,95179.0,0.5709412]
[1739368654649,0.3608,95195.0,95179.0,0.51823472]
[1739368654950,0.3608,95195.0,95179.0,0.53223472]
[1739368655547,0.3608,95195.0,95179.0,0.32209352]
[1739368655743,0.3638,95195.0,95179.0,0.32209352]
[1739368656050,0.3608,95187.0,95179.0,0.014]
[1739368656645,0.3608,95186.0,95179.0,0.013]
[1739368657245,0.5709271,95186.0,95179.0,0.013]
[1739368657855,0.5709271,95186.0,95165.0,0.3608]
[1739368658051,0.3608,95172.0,95165.0,0.3608]
[1739368658445,0.3608,95177.0,95165.0,0.3608]
[1739368658754,0.3608,95177.0,95165.0,0.40388454]
[1739368659554,0.3618,95177.0,95165.0,0.40388454]
[1739368659741,0.3618,95177.0,95165.0,0.41488454]
[1739368660955,0.3618,95177.0,95165.0,0.05408454]
[1739368661154,0.3618,95177.0,95165.0,0.04308454]
[1739368661155,0.3628,95177.0,95165.0,0.04308454]
[1739368661458,0.3628,95177.0,95161.0,0.24375757]
[1739368661752,0.3638,95177.0,95161.0,0.24375757]
[1739368661951,0.3638,95177.0,95161.0,0.28737195]
[1739368662756,0.3618,95177.0,95165.0,0.01]
[1739368662954,0.3608,95166.0,95165.0,0.01]
[1739368663555,0.3608,95166.0,95161.0,0.05377195]
[1739368663746,0.3608,95166.0,95161.0,0.01015757]
[1739368663943,0.3608,95166.0,95144.0,0.2102171]
[1739368664152,0.3608,95149.0,95141.0,0.2408]
[1739368664356,0.3608,95149.0,95130.0,0.41416]
[1739368664554,0.3608,95149.0,95123.0,0.00157653]
[1739368664555,0.3608,95133.0,95123.0,0.00157653]
[1739368664853,0.3608,95124.0,95123.0,0.00157653]
[1739368665645,0.3608,95124.0,95123.0,0.00557653]
[1739368666444,0.3608,95124.0,95110.0,0.04342452]
[1739368666652,0.3618,95124.0,95100.0,0.4608]
[1739368666851,0.3618,95124.0,95100.0,0.34142034]
[1739368667249,0.3608,95115.0,95100.0,0.09145756]
[1739368667850,0.3608,95115.0,95100.0,0.09245756]
[1739368668056,0.3608,95101.0,95100.0,0.09245756]
[1739368668243,0.3608,95101.0,95100.0,0.04829352]
[1739368668449,0.3608,95101.0,95079.0,0.43510806]
[1739368668644,0.3608,95083.0,95079.0,0.47953717]
[1739368669856,0.3608,95083.0,95079.0,0.42840799]
[1739368670253,0.3608,95083.0,95079.0,0.38397888]
[1739368670459,0.3628,95083.0,95079.0,0.38397888]
[1739368671756,0.3628,95083.0,95068.0,0.67174093]
[1739368671757,0.3628,95083.0,95068.0,0.04347929]
[1739368671955,0.3628,95083.0,95074.0,0.3608]
[1739368673064,0.3628,95083.0,95074.0,0.30809352]
[1739368673656,0.3648,95083.0,95074.0,0.30809352]
[1739368674160,0.00015774,95091.0,95082.0,0.3608]
[1739368674760,0.00015774,95091.0,95082.0,0.7615]
[1739368674956,0.00015774,95091.0,95082.0,0.4007]
[1739368675863,0.002,95083.0,95082.0,0.4007]
[1739368676061,0.002,95083.0,95082.0,0.34799352]
[1739368676462,0.002,95083.0,95082.0,0.70879352]
[1739368676861,0.00215774,95091.0,95082.0,0.71079352]
[1739368677053,0.002,95083.0,95082.0,0.71079352]
[1739368677665,0.00015774,95091.0,95089.0,0.2103388]
[1739368677862,0.00157779,95107.0,95090.0,0.3608]
[1739368678063,0.3608,95121.0,95090.0,0.3608]
[1739368678369,0.3608,95121.0,95100.0,0.1911016]
[1739368679057,0.00015774,95116.0,95104.0,0.2103064]
[1739368679256,0.00015774,95116.0,95100.0,0.13839512]
[1739368679257,0.00015774,95116.0,95108.0,0.2102975]
[1739368679466,0.00015774,95116.0,95109.0,0.2102948]
[1739368679966,0.00015774,95116.0,95107.0,0.3608]
[1739368680161,0.001,95112.0,95111.0,0.2102918]
[1739368680760,0.00215774,95116.0,95111.0,0.2102918]
[1739368680961,0.00115774,95116.0,95109.0,0.002]
[1739368681162,0.00315774,95116.0,95109.0,0.002]
[1739368682272,0.00315774,95116.0,95107.0,0.20379352]
[1739368682460,0.00215774,95116.0,95111.0,0.01]
[1739368682672,0.001,95112.0,95111.0,0.01]
[1739368683067,1e-08,95116.0,95115.0,0.210283]
[1739368683260,0.00157752,95132.0,95115.0,0.3608]
[1739368683455,0.00157752,95132.0,95124.0,0.3608]
[1739368683662,0.3608,95144.0,95124.0,0.3608]
[1739368683872,0.3608,95144.0,95130.0,0.2102493]
[1739368684070,0.3608,95144.0,95124.0,0.3608]
[1739368684365,0.004,95132.0,95124.0,0.3608]
[1739368684571,0.004,95132.0,95124.0,0.36095774]
[1739368685077,0.004,95132.0,95124.0,0.30825126]
[1739368685673,0.004,95132.0,95124.0,0.36060645]
[1739368685870,0.3608,95127.0,95124.0,0.05251293]
[1739368686071,0.3608,95127.0,95124.0,0.00015774]
[1739368686776,0.2102587,95126.0,95124.0,0.00015774]
[1739368687883,0.2102587,95126.0,95124.0,1e-08]
[1739368688175,0.3608,95127.0,95111.0,0.34799353]
[1739368688378,0.3608,95112.0,95111.0,0.34799353]
[1739368689577,0.3608,95112.0,95111.0,0.35099353]
[1739368690179,0.3608,95112.0,95111.0,0.34999353]
[1739368690383,0.3648,95112.0,95111.0,0.002]
[1739368691188,0.3648,95112.0,95102.0,0.00209412]
[1739368691381,0.3608,95103.0,95091.0,0.0015775]
[1739368691584,0.3608,95094.0,95091.0,0.05270072]
[1739368691786,0.3588,95094.0,95083.0,0.3608]
[1739368692188,0.3588,95094.0,95080.0,0.2103599]
[1739368692485,0.3588,95094.0,95072.0,0.2621]
[1739368692675,0.3588,95094.0,95091.0,0.015]
[1739368693194,0.3588,95094.0,95081.0,0.05268494]
[1739368693485,0.3608,95085.0,95081.0,0.015]
[1739368694183,0.3608,95085.0,95069.0,0.01603563]
[1739368694380,0.3608,95085.0,95061.0,0.00157789]
[1739368694688,0.3608,95085.0,95068.0,0.2103865]
[1739368695187,0.3608,95085.0,95073.0,0.2103745]
[1739368695688,0.3618,95085.0,95073.0,0.2103745]
[1739368695885,0.001,95085.0,95079.0,0.3608]
[1739368696076,0.001,95085.0,95081.0,0.2103581]
[1739368696282,0.3608,95091.0,95080.0,0.2628]
[1739368696488,0.001,95085.0,95073.0,0.015]
[1739368697185,0.3608,95082.0,95072.0,0.22509352]
[1739368697686,0.3608,95082.0,95071.0,0.05365795]
[1739368697887,0.3608,95074.0,95052.0,0.35115969]
[1739368698085,0.3608,95066.0,95052.0,0.00157789]
[1739368698288,0.3608,95066.0,95055.0,0.41286218]
[1739368698789,0.3558,95066.0,95055.0,0.41286218]
[1739368698990,0.3558,95066.0,95056.0,0.2104115]
[1739368699378,0.3558,95066.0,95059.0,0.2104055]
[1739368699578,0.3568,95066.0,95062.0,0.2103991]
[1739368699784,0.3568,95066.0,95065.0,0.2103936]
[1739368699986,0.001,95066.0,95065.0,0.2103936]
[1739368700390,0.001,95066.0,95065.0,0.15768712]
[1739368701094,0.001,95066.0,95056.0,0.8806118]
[1739368701289,0.002,95066.0,95063.0,0.3608]
[1739368701689,0.002,95066.0,95065.0,0.2103936]
[1739368701888,0.36095774,95074.0,95063.0,0.3608]
[1739368702091,0.001,95066.0,95063.0,0.3608]
[1739368702494,0.001,95066.0,95064.0,0.2103958]
[1739368702793,0.36095774,95074.0,95073.0,0.2103759]
[1739368703393,0.00015774,95074.0,95073.0,0.15766942]
[1739368703594,0.32833577,95084.0,95083.0,0.2103538]
[1739368703897,0.3608,95097.0,95087.0,0.2103441]
[1739368704190,0.3608,95097.0,95081.0,0.3608]
[1739368704498,0.3608,95097.0,95089.0,0.2103387]
[1739368704990,0.3608,95097.0,95092.0,0.2103334]
[1739368705182,0.3608,95097.0,95093.0,0.2103308]
[1739368705183,0.3748,95097.0,95093.0,0.2103308]
[1739368706187,0.3748,95097.0,95095.0,0.2103254]
[1739368706188,0.02,95097.0,95095.0,0.2103254]
[1739368706382,0.18360483,95112.0,95090.0,0.30809352]
[1739368706582,0.18360483,95112.0,95090.0,0.49930896]
[1739368706783,0.18360483,95112.0,95100.0,0.19121544]
[1739368707197,0.18360483,95112.0,95108.0,0.3608]
[1739368707495,0.3608,95117.0,95109.0,1.1125]
[1739368707693,0.3608,95117.0,95115.0,0.2102814]
[1739368708089,0.00015774,95119.0,95118.0,0.2102764]
[1739368709385,0.00015774,95119.0,95118.0,0.15756992]
[1739368709898,0.00015774,95119.0,95117.0,0.13884]
[1739368710287,0.00015774,95119.0,95116.0,0.3608]
[1739368710496,0.00615774,95119.0,95116.0,0.3608]
[1739368710689,0.00615774,95119.0,95109.0,0.0008]
[1739368710887,0.00615774,95119.0,95104.0,0.05267786]
[1739368711087,0.00615774,95119.0,95100.0,0.00015774]
[1739368711291,0.00615774,95119.0,95100.0,0.0514629]
[1739368711492,0.00615774,95119.0,95100.0,0.00015774]
[1739368711493,0.3608,95111.0,95100.0,0.00015774]
[1739368712487,0.3608,95111.0,95097.0,0.36180194]
[1739368713203,0.3608,95103.0,95087.0,0.2616]
[1739368714305,0.3608,95103.0,95087.0,0.31384123]
[1739368715095,0.3618,95103.0,95087.0,0.31384123]
[1739368715490,0.3618,95103.0,95087.0,0.26113475]
[1739368716199,0.3618,95103.0,95087.0,0.05224123]
[1739368716200,0.3608,95095.0,95087.0,0.05224123]
[1739368716400,0.3608,95095.0,95085.0,0.00015774]
[1739368716899,0.3608,95095.0,95085.0,0.05286701]
[1739368717106,0.3608,95095.0,95085.0,0.00015774]
[1739368717811,0.3618,95095.0,95085.0,0.00015774]
[1739368718701,0.3618,95095.0,95069.0,0.08613126]
[1739368718998,0.3618,95095.0,95069.0,0.29651476]
[1739368719200,0.3608,95086.0,95067.0,0.0015778]
[1739368719597,0.3608,95086.0,95066.0,0.41313805]
[1739368719998,0.3608,95086.0,95069.0,0.001]
[1739368720799,0.3618,95086.0,95069.0,0.001]
[1739368721000,0.3608,95078.0,95069.0,0.001]
[1739368721201,0.3608,95070.0,95069.0,0.001]
[1739368721605,0.3608,95070.0,95057.0,0.3608]
[1739368721906,0.3608,95061.0,95049.0,0.13856]
[1739368722309,0.19121544,95060.0,95049.0,0.052901]
[1739368722506,0.19121544,95060.0,95035.0,0.67286039]
[1739368722707,0.19121544,95060.0,95057.0,0.003]
[1739368723008,0.5712034,95061.0,95057.0,0.003]
[1739368723205,0.3608,95061.0,95046.0,0.05150679]
[1739368723401,0.3608,95053.0,95049.0,0.003]
[1739368723801,0.3608,95053.0,95042.0,0.3035322]
[1739368723802,0.3999,95052.0,95042.0,0.3035322]
[1739368724419,0.3999,95052.0,95042.0,0.05241697]
[1739368724711,0.3999,95052.0,95035.0,0.36051049]
[1739368725211,0.3999,95052.0,95035.0,0.41409544]
[1739368725409,0.4009,95052.0,95035.0,0.41409544]
[1739368726113,0.19121544,95050.0,95035.0,0.41609544]
[1739368726410,0.4009,95052.0,95035.0,0.41609544]
[1739368726909,0.3608,95053.0,95035.0,0.55453544]
[1739368727111,0.001,95052.0,95035.0,0.55453544]
[1739368727510,0.19121544,95050.0,95035.0,0.55453544]
[1739368727814,0.19121544,95050.0,95035.0,0.36359318]
[1739368728016,0.3608,95041.0,95035.0,0.05558495]
[1739368728217,0.3608,95041.0,95035.0,0.05358495]
[1739368728515,0.3608,95041.0,95028.0,1.22252]
[1739368728716,0.3608,95041.0,95028.0,1.2218]
[1739368729011,0.3608,95041.0,95028.0,1.27562307]
[1739368729415,0.3608,95041.0,95028.0,0.19222307]
[1739368730712,0.3608,95041.0,95028.0,0.13972081]
[1739368731014,0.3618,95041.0,95028.0,0.13972081]
[1739368731613,0.3608,95041.0,95028.0,0.13972081]
[1739368731814,0.3618,95041.0,95030.0,0.19121544]
[1739368732016,0.3618,95041.0,95033.0,0.2104631]
[1739368732919,0.3618,95041.0,95029.0,0.2104724]
[1739368733610,0.3628,95041.0,95029.0,0.2104724]
[1739368733816,0.3628,95041.0,95026.0,0.00157828]
[1739368733817,0.3608,95032.0,95026.0,0.00157828]
[1739368734816,0.3608,95032.0,95019.0,0.0369]
[1739368735017,0.19121544,95030.0,95029.0,0.001]
[1739368735221,0.3618,95032.0,95029.0,0.001]
[1739368735720,0.3628,95032.0,95029.0,0.001]
[1739368736114,0.002,95032.0,95029.0,0.001]
[1739368736425,0.003,95032.0,95024.0,0.3608]
[1739368736817,0.003,95032.0,95024.0,0.30829774]
[1739368737120,0.003,95032.0,95019.0,0.08840255]
[1739368737311,0.003,95032.0,95020.0,0.19121544]
[1739368737518,0.003,95032.0,95019.0,0.22660255]
[1739368738117,0.003,95032.0,95020.0,0.19121544]
[1739368738626,0.001,95032.0,95019.0,0.22760255]
[1739368739222,0.001,95032.0,95020.0,0.001]
[1739368739719,0.001,95032.0,95019.0,0.17510029]
[1739368740129,0.001,95032.0,95019.0,0.03690029]
[1739368740430,0.3608,95025.0,95019.0,0.03690029]
[1739368740925,0.3608,95025.0,95019.0,0.001]
[1739368741428,0.2104899,95022.0,95019.0,0.001]
[1739368741628,0.5712919,95021.0,95019.0,0.001]
[1739368742025,0.2105025,95016.0,95007.0,0.05177413]
[1739368742227,0.3608,95008.0,95000.0,0.1]
[1739368742934,0.3608,95008.0,95000.0,0.04749774]
[1739368743827,0.3618,95008.0,95000.0,0.04749774]
[1739368745530,0.3628,95008.0,95000.0,0.04749774]
[1739368745733,0.3628,95008.0,95000.0,0.10122472]
[1739368745933,0.3628,95008.0,94994.0,0.8837503]
[1739368747336,0.002,95008.0,95007.0,0.210522]
[1739368747833,0.3608,95028.0,95008.0,0.2105185]
[1739368748035,0.3608,95028.0,95010.0,0.19121544]
[1739368748235,0.3608,95028.0,95015.0,0.2105036]
[1739368748536,0.3608,95028.0,95003.0,0.3608]
[1739368748537,0.3608,95028.0,95018.0,0.19121544]
[1739368749035,0.3608,95028.0,95019.0,0.61699774]
[1739368749838,0.3678,95028.0,95019.0,0.61699774]
[1739368750234,0.3748,95028.0,95019.0,0.61699774]
[1739368750834,0.3678,95028.0,95019.0,0.61699774]
[1739368751027,0.3818,95028.0,95019.0,0.61699774]
[1739368752133,0.3818,95028.0,95025.0,0.2104809]
[1739368752333,0.3818,95028.0,95020.0,0.4283]
[1739368752632,0.021,95028.0,95020.0,0.4283]
[1739368753440,0.021,95028.0,95020.0,0.69038667]
[1739368754329,0.021,95028.0,95020.0,0.47989507]
[1739368754531,0.021,95028.0,95021.0,0.21049]
[1739368754844,0.00015783,95033.0,95026.0,0.2104791]
[1739368755138,0.3608,95044.0,95029.0,0.30829774]
[1739368755836,0.007,95028.0,95026.0,0.19121544]
[1739368756031,0.007,95028.0,95022.0,0.2104872]
[1739368756234,0.012,95028.0,95022.0,0.2104872]
[1739368756633,0.012,95028.0,95021.0,0.001]
[1739368757025,0.015,95028.0,95026.0,0.001]
[1739368757831,0.012,95028.0,95021.0,0.001]
[1739368758032,0.019,95028.0,95020.0,0.42939281]
[1739368758332,0.3608,95027.0,95020.0,0.05159507]
[1739368758638,0.3608,95027.0,95026.0,0.001]
[1739368759228,0.3608,95027.0,95019.0,0.05190525]
[1739368759436,0.3608,95027.0,95020.0,0.001]
[1739368760134,0.3608,95027.0,95026.0,0.001]
[1739368760527,0.02,95028.0,95026.0,0.001]
[1739368761138,0.02,95028.0,95021.0,0.3924]
[1739368761344,0.012,95027.0,95021.0,0.3924]
[1739368761728,0.019,95027.0,95026.0,0.001]
[1739368762135,0.012,95027.0,95020.0,0.001]
[1739368762335,0.012,95027.0,95021.0,0.001]
[1739368762730,0.012,95027.0,95020.0,0.001]
[1739368762938,0.019,95027.0,95026.0,0.001]
[1739368763134,0.007,95027.0,95026.0,0.002]
[1739368763339,0.015,95028.0,95026.0,0.001]
[1739368763534,0.007,95027.0,95026.0,0.001]
[1739368763936,0.019,95027.0,95021.0,0.001]
[1739368764135,0.019,95027.0,95013.0,0.00147135]
[1739368764336,0.019,95027.0,95011.0,0.41388946]
[1739368764735,0.022,95027.0,95026.0,0.001]
[1739368765644,0.02,95027.0,95026.0,0.001]
[1739368766233,0.022,95027.0,95026.0,0.001]
[1739368766439,0.013,95027.0,95017.0,0.00015783]
[1739368766836,0.013,95027.0,95017.0,0.19137327]
[1739368767140,0.007,95027.0,95017.0,0.13887101]
[1739368767438,0.022,95027.0,95026.0,0.001]
[1739368767834,0.007,95027.0,95011.0,0.41388946]
[1739368768041,0.017,95027.0,95017.0,0.001]
[1739368768733,0.01,95027.0,95017.0,0.001]
[1739368768931,0.017,95027.0,95017.0,0.001]
[1739368769331,0.01,95027.0,95017.0,0.001]
[1739368769536,0.017,95027.0,95017.0,0.001]
[1739368770248,0.017,95027.0,95013.0,0.15900634]
[1739368770842,0.022,95027.0,95026.0,0.001]
[1739368771947,0.02,95027.0,95026.0,0.001]
[1739368772452,0.022,95027.0,95026.0,0.001]
[1739368772633,0.2324778,95027.0,95026.0,0.001]
[1739368773141,0.2244778,95027.0,95011.0,0.30929774]
[1739368774145,0.3608,95020.0,95011.0,0.36190956]
[1739368774548,0.3608,95020.0,95011.0,0.05261182]
[1739368774732,0.2105156,95010.0,94999.0,0.18974295]
[1739368774933,0.3608,95001.0,94999.0,0.18974295]
[1739368775347,0.3608,95012.0,94999.0,0.18974295]
[1739368775639,0.36074375,95012.0,94999.0,0.24177043]
[1739368776243,0.3608,95001.0,94999.0,0.18926817]
[1739368777749,0.3618,95001.0,94999.0,0.05202748]
[1739368777941,0.3618,95001.0,94991.0,0.3608]
[1739368778342,0.3618,95001.0,94991.0,0.41365924]
[1739368778543,0.3638,95001.0,94991.0,0.41365924]
[1739368779144,0.3608,95001.0,94991.0,0.41365924]
[1739368779339,0.3608,95001.0,94991.0,0.36115698]
[1739368780153,0.3618,95001.0,94991.0,0.36115698]
[1739368780745,0.3608,95001.0,94991.0,0.36115698]
[1739368780946,0.3618,95001.0,94991.0,0.36115698]
[1739368782250,0.3618,95001.0,94991.0,0.30865472]
[1739368782644,0.3618,95001.0,94991.0,0.41365924]
[1739368783049,0.001,95001.0,94991.0,0.41365924]
[1739368783247,0.001,95001.0,94991.0,0.62421554]
[1739368783447,0.001,95001.0,94993.0,0.210553]
[1739368784854,0.001,95001.0,94991.0,0.41365924]
[1739368785252,0.3608,95001.0,94991.0,0.41365924]
[1739368785455,0.3618,95001.0,94991.0,0.36115698]
[1739368786049,0.3608,95001.0,94991.0,0.36115698]
[1739368786251,0.3618,95001.0,94991.0,0.36115698]
[1739368787252,0.3618,95001.0,94991.0,0.00035698]
[1739368787455,0.3618,95001.0,94990.0,0.12765665]
[1739368787658,0.3618,95001.0,94990.0,0.17983175]
[1739368787862,0.36074375,95012.0,94999.0,0.3608]
[1739368788061,0.36074375,95012.0,95000.0,0.81725665]
[1739368788358,0.36074375,95012.0,95000.0,0.76475439]
[1739368788563,0.001,95001.0,95000.0,0.76475439]
[1739368788757,0.001,95001.0,95000.0,0.63709774]
[1739368789254,0.36274375,95012.0,95000.0,0.63709774]
[1739368789458,0.36274375,95012.0,95002.0,0.33818895]
[1739368789656,0.36274375,95012.0,95003.0,0.4135]
[1739368789862,0.002,95012.0,95005.0,0.2105247]
[1739368790063,0.001,95012.0,95005.0,0.2105247]
[1739368790559,0.001,95012.0,95003.0,0.4135]
[1739368790760,0.3608,95021.0,95003.0,0.4135]
[1739368791466,0.002,95012.0,95003.0,0.36099774]
[1739368791856,0.3608,95013.0,95003.0,0.36099774]
[1739368792755,0.3608,95013.0,95003.0,0.002]